bitfinex/quotes_ETHUSD_20260108
["timestamp","ask_amount","ask_price","bid_price","bid_amount"]
[1767898428362,0.98722666,3123.9,3123.1,3.20188118]
[1767898428760,0.98722666,3123.9,3123.0,3.20200552]
[1767898429059,0.98722666,3123.9,3122.9,3.20308241]
[1767898429060,0.98522666,3123.8,3122.9,3.20309807]
[1767898429555,0.98522666,3123.8,3123.0,3.20204769]
[1767898429753,0.98522666,3123.3,3122.7,0.001]
[1767898429957,0.98522666,3123.1,3122.7,0.001]
[1767898430638,0.98522666,3123.3,3122.7,0.001]
[1767898431452,0.98522666,3123.6,3122.7,0.95903486]
[1767898431657,3.20135831,3123.7,3122.7,0.95903486]
[1767898431954,4.76335466,3123.7,3122.8,4.16028924]
[1767898432159,0.002,3123.9,3123.4,0.95803486]
[1767898432657,0.002,3123.6,3123.4,0.95803486]
[1767898432860,0.002,3124.2,3123.4,0.95803486]
[1767898433955,0.98722666,3124.2,3123.1,3.2018906]
[1767898434157,0.98522666,3124.0,3123.0,3.20300051]
[1767898434349,0.98522666,3124.0,3123.1,3.20193741]
[1767898435459,0.98522666,3124.0,3123.0,3.2030008]
[1767898435965,0.98522666,3123.8,3123.0,0.001]
[1767898438150,0.98522666,3123.8,3123.0,0.95903486]
[1767898438450,0.98522666,3123.8,3123.1,0.73633385]
[1767898440548,4.18646072,3123.8,3123.1,0.73633385]
[1767898440757,0.98522666,3123.8,3123.1,3.93826827]
[1767898441470,4.18647817,3123.8,3123.1,3.93826827]
[1767898441771,0.98522666,3123.7,3123.1,3.93826827]
[1767898441965,0.98522666,3123.7,3123.1,0.73633385]
[1767898442267,0.98522666,3123.7,3123.0,0.001]
[1767898442444,0.94631571,3123.5,3123.0,0.001]
[1767898443071,0.94631571,3123.5,3122.7,0.001]
[1767898444771,0.94631571,3123.3,3122.7,0.001]
[1767898445069,0.94631571,3123.2,3122.7,0.001]
[1767898445268,0.94631571,3123.0,3122.4,0.001]
[1767898446173,0.17863157,3123.1,3122.4,0.001]
[1767898446356,1.12494728,3123.1,3122.4,0.001]
[1767898446753,0.94631571,3122.9,3122.4,0.001]
[1767898449253,4.1484983,3122.9,3122.4,0.001]
[1767898449978,4.1484966,3122.9,3122.4,0.001]
[1767898451179,1.15743387,3123.1,3122.4,0.001]
[1767898451368,0.9788023,3123.3,3122.4,0.96700344]
[1767898451565,1.8188023,3123.4,3122.4,0.96700344]
[1767898451764,0.9788023,3123.3,3122.4,0.96700344]
[1767898451977,0.9788023,3123.3,3122.4,0.001]
[1767898452682,0.9788023,3123.1,3122.4,0.001]
[1767898452851,0.9788023,3123.0,3122.4,0.001]
[1767898453173,4.1808899,3123.0,3122.4,0.001]
[1767898454678,4.17899126,3123.0,3122.4,0.001]
[1767898456475,0.9788023,3122.9,3122.4,0.001]
[1767898457780,4.18095799,3122.9,3122.7,0.001]
[1767898457953,0.9788023,3122.8,3122.4,0.001]
[1767898458150,0.9808023,3122.8,3122.4,0.001]
[1767898458546,0.002,3122.8,3122.4,0.001]
[1767898458976,3.58930935,3123.1,3122.4,0.001]
[1767898458977,0.002,3123.1,3122.4,0.96700344]
[1767898459355,0.9808023,3123.1,3122.4,0.96700344]
[1767898459551,0.9808023,3123.1,3122.4,0.001]
[1767898459867,0.002,3123.1,3122.4,0.96700344]
[1767898460062,0.002,3123.1,3122.4,1.35115319]
[1767898460262,4.18276199,3123.1,3122.4,0.38514975]
[1767898460461,0.9788023,3123.0,3122.4,0.001]
[1767898463563,0.002,3123.1,3122.4,0.96700344]
[1767898463767,3.20397201,3123.1,3122.4,0.96700344]
[1767898465773,4.18277431,3123.1,3122.4,0.96700344]
[1767898467278,4.18277431,3123.1,3122.4,0.001]
[1767898467486,0.9788023,3123.0,3122.4,0.001]
[1767898467867,4.18090837,3123.0,3122.4,0.001]
[1767898470690,4.18090837,3123.0,3122.7,0.001]
[1767898477314,0.9788023,3123.0,3122.7,0.001]
[1767898477886,4.18088427,3123.0,3122.7,0.001]
[1767898478105,7.87510087,3123.0,3122.7,0.001]
[1767898478314,0.97718077,3122.9,3122.4,0.001]
[1767898478889,4.17935356,3122.9,3122.4,0.001]
[1767898481919,3.20217279,3122.9,3122.5,0.98798869]
[1767898482115,0.002,3123.1,3122.5,0.98798869]
[1767898482928,3.20395312,3123.1,3122.7,0.001]
[1767898483230,3.94224225,3123.1,3122.7,0.001]
[1767898483704,0.97718077,3123.0,3122.7,0.001]
[1767898483898,0.97718077,3122.9,3122.4,0.001]
[1767898487828,3.20211255,3123.0,3122.4,0.001]
[1767898488127,3.94229719,3123.1,3122.4,0.001]
[1767898488299,3.20400806,3123.1,3122.4,0.001]
[1767898488496,4.18118883,3123.1,3122.4,0.001]
[1767898489624,4.18118883,3123.1,3122.4,0.98898869]
[1767898491829,4.18118883,3123.1,3122.4,4.19164187]
[1767898492019,0.97918077,3123.1,3122.4,4.19164187]
[1767898492706,4.181167,3123.1,3122.4,4.19164187]
[1767898492914,4.88670997,3123.1,3122.4,4.19164187]
[1767898494031,4.88670997,3123.1,3122.4,0.98898869]
[1767898494830,0.97718077,3123.0,3122.4,0.001]
[1767898495799,0.97718077,3123.0,3122.7,0.001]
[1767898496202,0.97918077,3122.8,3122.7,0.001]
[1767898496416,0.97918077,3122.8,3122.4,0.001]
[1767898497209,0.97718077,3122.7,3122.4,0.001]
[1767898497415,3.8514435,3122.5,3121.6,1.82798869]
[1767898497706,3.8514435,3122.7,3121.7,0.98798869]
[1767898497907,3.8514435,3122.7,3121.8,0.98798869]
[1767898498109,3.8514435,3122.7,3121.9,0.98798869]
[1767898498407,1.09635674,3122.6,3121.9,0.98798869]
[1767898499136,4.29888827,3122.6,3121.9,0.98798869]
[1767898499430,5.27606904,3122.6,3121.9,0.98798869]
[1767898499631,0.97718077,3122.4,3121.7,0.98798869]
[1767898500234,0.97718077,3122.4,3121.5,0.98798869]
[1767898500436,3.8514435,3121.9,3121.2,3.20379862]
[1767898500739,3.8514435,3121.9,3121.0,0.98798869]
[1767898500740,0.97718077,3121.8,3121.0,0.98798869]
[1767898501117,7.05482627,3121.7,3120.8,3.20425797]
[1767898501320,7.05482627,3121.7,3120.6,0.98798869]
[1767898501321,3.8514435,3121.3,3120.6,0.98798869]
[1767898501520,0.38514435,3121.2,3120.6,0.98798869]
[1767898502131,0.97718077,3121.3,3120.6,0.98798869]
[1767898502535,0.97718077,3121.3,3120.6,4.19244081]
[1767898502743,0.95219778,3121.6,3120.7,3.20434859]
[1767898503348,0.95219778,3121.5,3120.7,3.20434859]
[1767898503552,0.95219778,3121.5,3120.7,4.19071991]
[1767898503751,1.97553703,3121.5,3120.7,4.19071991]
[1767898505650,5.17913269,3121.5,3120.7,4.19071991]
[1767898507343,1.97553703,3121.5,3120.8,0.98637132]
[1767898507546,1.97553703,3121.5,3120.6,6.07876085]
[1767898507547,0.95219778,3121.4,3120.6,4.1908747]
[1767898507857,0.95219778,3121.4,3120.6,3.20450338]
[1767898508223,0.95219778,3121.4,3120.7,3.20439818]
[1767898509044,0.95219778,3121.4,3120.7,4.12645027]
[1767898509244,3.77994829,3121.5,3121.0,0.001]
[1767898509551,0.6983462,3121.4,3121.0,0.001]
[1767898511869,1.60403176,3121.4,3121.0,0.001]
[1767898514749,0.90568556,3121.3,3121.0,0.001]
[1767898515173,4.10910876,3121.7,3121.0,0.001]
[1767898515372,3.2034232,3121.7,3121.0,0.92305209]
[1767898515881,0.90568556,3121.9,3121.1,0.92205209]
[1767898516687,2.87426273,3122.2,3121.3,0.92205209]
[1767898516688,7.3114251,3122.2,3121.3,0.92205209]
[1767898516863,0.90568556,3122.1,3121.3,0.92205209]
[1767898518501,0.90689748,3121.3,3120.1,0.92205209]
[1767898518674,2.87426273,3120.7,3120.2,0.92205209]
[1767898518854,2.87426273,3120.9,3120.2,0.92205209]
[1767898519172,0.90568556,3121.0,3120.3,0.92205209]
[1767898519349,0.90568556,3121.0,3120.3,1.65524694]
[1767898521263,0.90568556,3121.0,3120.3,4.85999721]
[1767898522757,0.90568556,3121.0,3120.2,3.20485249]
[1767898522962,3.77994829,3120.9,3120.1,4.12703389]
[1767898523185,0.90568556,3120.8,3120.1,4.12703389]
[1767898523591,0.90568556,3120.8,3120.2,3.20490061]
[1767898523769,0.90568556,3121.0,3120.3,0.92205209]
[1767898524268,2.87426273,3120.7,3119.9,0.92205209]
[1767898524575,2.87426273,3120.7,3119.6,0.92205209]
[1767898524576,0.90568556,3120.5,3119.6,0.92205209]
[1767898524777,3.77994829,3120.7,3119.7,0.92205209]
[1767898524968,0.90568556,3119.7,3118.8,0.16711095]
[1767898525167,0.90568556,3119.7,3118.8,3.37344815]
[1767898525379,0.90568556,3119.7,3119.0,3.20612166]
[1767898525577,0.90568556,3119.7,3118.8,3.20636142]
[1767898525974,0.90568556,3119.7,3118.9,0.92205209]
[1767898526183,0.90568556,3119.7,3119.0,1.02090377]
[1767898526385,0.90568556,3119.7,3119.0,1.01969185]
[1767898527273,0.90568556,3120.1,3119.1,0.92205209]
[1767898527478,0.90568556,3120.1,3119.3,0.92205209]
[1767898527797,3.77994829,3119.8,3118.9,3.20619812]
[1767898528001,0.90568556,3119.7,3118.9,3.20619812]
[1767898528201,0.90568556,3119.5,3118.7,3.20637456]
[1767898528703,0.90568556,3119.5,3118.5,0.92205209]
[1767898528888,0.90568556,3119.5,3118.8,3.20631499]
[1767898529402,0.90568556,3119.5,3118.7,3.20641761]
[1767898529604,0.90568556,3119.5,3118.8,3.20633697]
[1767898529796,0.90568556,3119.5,3118.6,6.41311497]
[1767898529997,0.90568556,3119.7,3118.8,3.51555122]
[1767898530177,0.90568556,3119.7,3118.8,0.64128849]
[1767898531210,0.90568556,3119.6,3118.8,0.64128849]
[1767898532108,0.90568556,3119.5,3118.8,0.64128849]
[1767898532410,0.90568556,3119.5,3118.8,3.20631171]
[1767898532615,6.98550391,3119.7,3118.8,4.1112306]
[1767898534021,0.90574322,3119.6,3118.8,4.1112306]
[1767898534732,0.90574322,3119.6,3119.1,0.001]
[1767898534930,4.95211483,3119.8,3119.1,0.001]
[1767898535133,6.05526681,3119.8,3119.1,0.001]
[1767898535337,5.21426681,3119.8,3119.1,0.001]
[1767898535512,6.05526681,3119.8,3119.1,0.001]
[1767898535842,5.21426681,3119.8,3119.1,0.001]
[1767898536137,8.92952954,3119.8,3119.1,0.001]
[1767898536341,2.11922052,3119.7,3119.1,0.001]
[1767898536510,0.90574322,3119.6,3119.1,0.001]
[1767898536711,0.90574322,3119.3,3118.5,0.90491889]
[1767898536910,0.90574322,3119.3,3118.6,3.20654952]
[1767898537219,0.90574322,3119.3,3118.5,3.20663522]
[1767898537420,0.90574322,3119.1,3118.4,3.20670662]
[1767898537618,0.90574322,3119.1,3118.5,3.20661283]
[1767898537822,0.90574322,3119.1,3118.6,3.20647653]
[1767898538538,0.90574322,3119.1,3118.5,3.20666987]
[1767898538844,0.90574322,3119.1,3118.5,6.41333974]
[1767898539144,0.90574322,3119.3,3118.5,6.41333974]
[1767898539317,2.96022052,3119.7,3118.8,0.90491889]
[1767898539511,0.90574322,3119.6,3118.8,0.90491889]
[1767898540533,0.90574322,3119.6,3118.6,0.90491889]
[1767898540732,0.90574322,3119.6,3118.6,4.1113901]
[1767898540733,6.98564787,3119.5,3118.6,4.1113901]
[1767898541236,0.90574322,3119.6,3118.8,0.90491889]
[1767898541844,0.90574322,3119.6,3118.6,7.31795714]
[1767898542016,0.90574322,3119.6,3118.7,0.81615304]
[1767898542607,0.90574322,3119.6,3118.9,3.20625861]
[1767898543038,0.90574322,3119.0,3118.3,0.001]
[1767898543608,0.90574322,3118.8,3118.3,0.001]
[1767898543807,0.90574322,3118.7,3118.3,0.001]
[1767898545016,0.90574322,3118.9,3118.3,0.001]
[1767898546315,0.90574322,3118.9,3117.2,0.90491889]
[1767898546523,0.90574322,3118.9,3117.3,3.20786173]
[1767898546524,0.90574322,3118.8,3117.3,3.20786173]
[1767898546932,0.90574322,3118.6,3117.4,3.20776231]
[1767898547143,0.90574322,3118.4,3117.3,3.20786173]
[1767898547347,0.90574322,3118.2,3117.3,6.415766]
[1767898547877,0.8160083,3118.3,3117.4,0.90491889]
[1767898548079,0.90574322,3118.8,3117.4,0.90491889]
[1767898548283,0.841,3118.7,3117.4,0.90491889]
[1767898548488,1.74674322,3118.7,3117.4,0.90491889]
[1767898549055,4.95328853,3118.7,3117.5,6.41539694]
[1767898549356,4.95328853,3118.7,3117.6,0.90491889]
[1767898549556,0.49532885,3118.6,3117.6,1.95772732]
[1767898550085,0.49532885,3118.6,3117.7,0.90491889]
[1767898550490,1.74674322,3118.7,3117.7,0.90491889]
[1767898551369,0.841,3118.7,3117.8,7.31969853]
[1767898551789,0.90574322,3118.9,3117.9,0.90491889]
[1767898551977,4.11200584,3118.9,3117.9,0.90491889]
[1767898552290,1.4010438,3118.8,3117.9,0.90491889]
[1767898552494,0.90574322,3118.7,3117.9,0.90491889]
[1767898552960,0.90574322,3118.7,3117.8,3.20738982]
[1767898553461,4.11231026,3118.6,3117.7,3.2074927]
[1767898553671,0.90574322,3118.4,3117.0,0.90491889]
[1767898553866,0.90574322,3118.2,3116.8,0.90491889]
[1767898554075,0.90574322,3118.2,3117.1,3.20804458]
[1767898554284,0.90574322,3118.2,3117.0,3.20816404]
[1767898554475,0.90574322,3118.2,3117.1,3.20809887]
[1767898554790,0.90574322,3118.2,3117.2,3.2079547]
[1767898554958,0.90574322,3118.2,3117.4,3.20777529]
[1767898555159,0.841,3118.2,3117.6,3.20758618]
[1767898555903,4.5236458,3118.5,3117.5,7.32031583]
[1767898556084,4.5236458,3118.5,3117.5,4.11261736]
[1767898556293,7.73031735,3118.5,3117.5,4.11261736]
[1767898556591,0.90574322,3118.3,3116.9,0.90491889]
[1767898556765,0.90574322,3118.3,3117.2,3.20794386]
[1767898556960,0.90574322,3118.3,3117.0,0.96583585]
[1767898557365,0.90574322,3118.2,3117.4,3.20777416]
[1767898557668,1.08203072,3118.2,3117.4,3.20777416]
[1767898558074,1.08203072,3118.2,3117.3,6.4157905]
[1767898559593,4.28902368,3118.2,3117.3,6.4157905]
[1767898560396,1.08203072,3118.2,3117.6,0.002]
[1767898561666,0.85813174,3118.4,3117.6,0.90691889]
[1767898561866,0.001,3118.4,3117.6,0.90691889]
[1767898562296,0.90674322,3118.4,3117.6,0.002]
[1767898562496,0.92470738,3117.8,3116.3,0.99908326]
[1767898562699,0.92470738,3117.6,3116.4,0.06091696]
[1767898562907,1.10137812,3117.5,3116.4,1.43207864]
[1767898563108,1.10137812,3117.5,3116.5,0.06091696]
[1767898563591,1.10137812,3117.5,3116.7,0.06091696]
[1767898563789,0.92470738,3117.3,3116.9,0.06091696]
[1767898564193,0.92470738,3117.3,3116.2,0.06091696]
[1767898564391,0.842,3117.4,3116.4,0.06091696]
[1767898564392,4.13282697,3117.1,3116.4,0.06091696]
[1767898564592,0.17667074,3117.2,3116.4,0.06091696]
[1767898564593,0.17667074,3117.2,3116.6,0.06091696]
[1767898564811,4.13268095,3117.3,3116.6,0.06091696]
[1767898565311,0.92470738,3117.2,3116.4,0.06091696]
[1767898566105,0.92470738,3117.2,3116.6,0.06091696]
[1767898566297,3.20791413,3117.3,3116.6,0.06091696]
[1767898566497,3.20791413,3117.3,3116.9,0.06091696]
[1767898566695,4.02615702,3117.3,3116.9,0.06091696]
[1767898566894,4.9508644,3117.3,3116.9,0.06091696]
[1767898568120,1.74295027,3117.3,3116.9,0.06091696]
[1767898568612,4.95093125,3117.3,3116.9,0.06091696]
[1767898568812,8.15891223,3117.3,3116.6,0.06091696]
[1767898568986,0.90009122,3117.2,3116.6,0.06091696]
[1767898569714,0.90009122,3117.2,3116.8,0.06091696]
[1767898570016,3.20798098,3117.3,3117.0,0.06091696]
[1767898570423,0.92470738,3117.7,3117.2,0.06091696]
[1767898570624,0.92470738,3117.9,3117.2,0.06091696]
[1767898570923,0.92470738,3117.7,3117.2,0.06091696]
[1767898571528,1.65865608,3117.7,3117.0,0.06091696]
[1767898571706,1.65865608,3117.7,3117.1,0.06091696]
[1767898572434,0.96860691,3117.5,3116.0,0.06291696]
[1767898572635,0.7339487,3117.7,3116.1,0.91959732]
[1767898572636,0.96860691,3117.6,3116.1,0.91959732]
[1767898572836,1.02952387,3117.6,3116.2,7.26007328]
[1767898573134,1.02952387,3117.6,3116.2,0.842]
[1767898573632,1.02952387,3117.6,3117.2,0.002]
[1767898573830,0.96860691,3117.5,3116.2,0.842]
[1767898574030,0.96860691,3117.3,3116.2,0.842]
[1767898574233,0.96860691,3117.3,3116.1,0.91959732]
[1767898574532,0.06091696,3117.0,3116.1,0.91959732]
[1767898574733,7.38544469,3116.8,3116.1,0.91959732]
[1767898574921,4.1770258,3116.8,3116.1,0.91959732]
[1767898575110,3.20841889,3116.8,3116.1,0.91959732]
[1767898575306,6.41683778,3116.8,3116.1,0.91959732]
[1767898575521,7.15538225,3116.8,3116.1,0.91959732]
[1767898576320,6.41683778,3116.8,3116.1,0.91959732]
[1767898576726,6.4166319,3116.9,3116.0,0.002]
[1767898576937,0.96860691,3116.8,3116.0,0.002]
[1767898578705,6.41704366,3116.7,3116.0,0.002]
[1767898579105,3.20852183,3116.7,3116.0,0.002]
[1767898579304,6.41704366,3116.7,3116.0,0.002]
[1767898580038,3.20852183,3116.7,3116.0,0.002]
[1767898580216,6.41704366,3116.7,3116.0,0.002]
[1767898581332,3.20852183,3116.7,3116.0,0.002]
[1767898581649,3.20852183,3116.7,3116.0,1.33470005]
[1767898582138,3.20852183,3116.7,3116.1,0.91959732]
[1767898583408,6.41684525,3116.8,3116.1,0.91959732]
[1767898584024,3.20841889,3116.8,3116.1,0.91959732]
[1767898584236,6.41672478,3116.9,3116.1,0.91959732]
[1767898584818,0.96860691,3116.8,3116.0,0.002]
[1767898585154,0.96860691,3116.8,3116.0,0.92159732]
[1767898585314,3.20852183,3116.7,3116.1,0.41309409]
[1767898585541,3.20852183,3116.7,3116.0,0.92159732]
[1767898586069,0.96860691,3116.6,3116.0,0.002]
[1767898587380,3.20852183,3116.7,3114.5,0.16717684]
[1767898587381,0.96860691,3115.4,3114.5,0.16717684]
[1767898587578,0.96860691,3115.3,3114.5,0.16717684]
[1767898587868,0.96860691,3115.3,3114.4,0.01761364]
[1767898588240,0.96860691,3115.3,3114.5,0.842]
[1767898588461,0.96860691,3115.3,3114.7,0.002]
[1767898588641,0.96860691,3115.3,3114.5,0.842]
[1767898589471,3.21006676,3115.2,3114.6,1e-08]
[1767898589652,6.42013352,3115.2,3114.6,1e-08]
[1767898590177,3.21006676,3115.2,3114.6,1e-08]
[1767898590353,3.94893294,3115.2,3114.4,0.01761364]
[1767898590539,0.96860691,3115.1,3114.1,0.842]
[1767898591339,6.42054574,3115.0,3114.1,0.842]
[1767898591547,7.38915265,3115.0,3114.1,0.842]
[1767898591872,7.38915265,3115.0,3113.8,0.91959732]
[1767898592169,0.96860691,3114.9,3113.8,0.91959732]
[1767898592371,0.96860691,3114.9,3113.9,0.842]
[1767898593310,0.96860691,3114.9,3113.9,1.79685145]
[1767898593515,3.210479,3114.8,3113.6,0.95485145]
[1767898593717,3.210479,3114.8,3114.0,0.842]
[1767898594479,0.95220846,3115.2,3114.0,1.79685145]
[1767898595705,4.16237827,3115.1,3114.1,0.95485145]
[1767898596007,3.21016981,3115.1,3114.1,0.95485145]
[1767898596977,4.16220994,3115.3,3114.1,0.95485145]
[1767898597202,4.16220994,3115.3,3114.3,0.95485145]
[1767898597377,7.37221142,3115.3,3114.3,0.95485145]
[1767898598202,7.37221142,3115.3,3114.3,1.79685145]
[1767898598509,0.95220846,3115.2,3114.2,0.17968515]
[1767898598805,3.21000148,3115.3,3114.2,1.1345366]
[1767898599008,6.42000296,3115.3,3114.2,1.1345366]
[1767898599603,7.37221142,3115.3,3114.2,1.1345366]
[1767898600303,0.95220846,3115.2,3114.3,0.842]
[1767898600915,0.001,3114.8,3114.3,0.842]
[1767898601917,0.001,3114.8,3114.1,0.95485145]
[1767898602211,0.001,3114.8,3114.2,0.842]
[1767898602612,0.001,3114.8,3114.3,0.95485145]
[1767898602805,0.001,3114.8,3114.4,1.1345366]
[1767898603712,0.001,3114.8,3114.4,1.9765366]
[1767898606414,0.001,3114.8,3114.4,1.1345366]
[1767898606721,0.001,3114.8,3114.4,1.9765366]
[1767898608127,0.001,3114.8,3114.4,1.02168515]
[1767898609016,0.001,3114.8,3114.4,0.17968515]
[1767898609334,0.001,3114.8,3114.1,0.95485145]
[1767898609923,0.001,3114.8,3114.2,0.95485145]
[1767898611310,0.99719048,3115.6,3114.6,0.90939728]
[1767898611510,0.99719048,3116.2,3114.8,0.90939728]
[1767898611745,0.99719048,3116.0,3114.7,1.75139728]
[1767898611937,0.99719048,3116.0,3114.7,4.96192557]
[1767898612130,0.99719048,3116.0,3114.8,0.90939728]
[1767898612428,0.99719048,3116.0,3114.8,4.11986003]
[1767898612622,1.99719048,3115.8,3114.8,4.11986003]
[1767898612823,1.99719048,3115.8,3114.8,4.93711227]
[1767898613611,0.99719048,3115.6,3114.9,0.842]
[1767898615036,3.21055162,3115.7,3114.9,1.75139728]
[1767898615818,0.001,3115.7,3115.0,0.90939728]
[1767898616036,0.001,3115.7,3115.1,0.8172072]
[1767898616817,0.001,3115.7,3115.1,1.72660448]
[1767898617023,0.001,3115.7,3115.2,0.90939728]
[1767898617227,0.99719048,3116.2,3115.2,0.90939728]
[1767898617423,0.99719048,3116.2,3115.3,1.08205773]
[1767898617640,0.99719048,3116.1,3115.3,1.08205773]
[1767898618141,0.99719048,3116.1,3115.3,4.29198209]
[1767898618442,4.20616389,3116.3,3115.5,0.90939728]
[1767898618648,4.94766324,3116.3,3115.5,0.90939728]
[1767898619019,0.99719048,3116.2,3115.3,0.17266045]
[1767898619226,3.95047276,3116.3,3115.1,3.21011949]
[1767898619227,0.99719048,3116.1,3115.1,3.21011949]
[1767898619550,0.99719048,3116.1,3115.2,3.21002997]
[1767898620343,4.2063567,3116.1,3115.2,3.21002997]
[1767898620548,4.2063567,3116.1,3115.2,3.94299952]
[1767898620927,0.99719048,3116.0,3115.0,3.21027042]
[1767898621133,0.99719048,3116.0,3115.1,4.05216896]
[1767898621335,0.99719048,3116.0,3115.1,0.842]
[1767898621652,0.99719048,3116.0,3115.1,3.21014109]
[1767898621950,0.99719048,3116.0,3115.2,0.90939728]
[1767898622328,0.99719048,3116.0,3115.2,4.11938143]
[1767898622525,0.99719048,3116.0,3115.2,0.90939728]
[1767898622731,4.20644793,3116.0,3115.2,0.90939728]
[1767898622930,0.99719048,3116.0,3115.2,4.1194507]
[1767898623146,0.99719048,3116.0,3115.1,3.70627033]
[1767898623464,0.98895488,3115.9,3115.1,3.70627033]
[1767898624037,4.19814579,3116.1,3115.2,4.62460886]
[1767898624368,4.19814579,3116.1,3115.2,4.62460138]
[1767898624862,4.19814579,3116.1,3115.2,1.41454628]
[1767898625062,0.98895488,3116.0,3115.0,0.9490175]
[1767898625262,0.98895488,3116.0,3115.1,0.842]
[1767898626063,0.001,3115.7,3115.1,0.842]
[1767898626373,0.001,3115.7,3115.2,3.21005332]
[1767898626538,0.001,3115.7,3115.2,4.15907082]
[1767898626749,0.001,3115.7,3115.2,4.98019159]
[1767898627374,0.001,3115.7,3115.3,0.9490175]
[1767898627851,0.001,3115.7,3115.2,4.03117409]
[1767898628051,0.001,3115.7,3115.2,1.66312077]
[1767898628458,0.001,3115.7,3115.2,5.82215897]
[1767898628652,0.001,3115.7,3115.3,0.5822159]
[1767898628854,0.98995488,3115.7,3114.7,0.06091696]
[1767898629056,0.98995488,3115.7,3114.1,0.9490175]
[1767898629057,0.98895488,3115.3,3114.1,0.9490175]
[1767898630569,0.98895488,3115.1,3114.1,0.9490175]
[1767898630764,3.21006676,3115.2,3114.2,0.9490175]
[1767898631156,4.19895933,3115.3,3114.3,0.9490175]
[1767898631361,4.19873118,3115.5,3114.4,0.9490175]
[1767898632070,0.001,3115.7,3114.4,1.00993446]
[1767898632576,0.001,3115.7,3114.9,0.92079471]
[1767898632749,0.001,3115.7,3115.0,0.92079471]
[1767898634157,0.001,3115.7,3115.0,4.13099969]
[1767898634374,0.001,3115.7,3115.0,4.95542742]
[1767898634583,0.001,3115.7,3115.1,0.92079471]
[1767898635753,0.001,3115.7,3115.3,0.92079471]
[1767898637385,0.001,3115.7,3115.3,4.13073568]
[1767898637706,0.001,3115.7,3115.3,0.92079471]
[1767898638018,0.001,3115.7,3115.3,1.43563864]
[1767898639399,0.001,3115.7,3115.5,0.002]
[1767898645308,0.99317988,3116.3,3115.5,0.92279471]
[1767898646109,0.99317988,3116.5,3115.5,0.92279471]
[1767898646882,0.99317988,3116.3,3115.5,0.92279471]
[1767898647213,0.99317988,3116.3,3115.6,0.41326027]
[1767898649424,0.99317988,3116.2,3115.6,0.41326027]
[1767898649577,0.99317988,3116.2,3115.5,0.002]
[1767898651616,4.2023195,3116.1,3115.5,0.002]
[1767898651920,0.99317988,3116.1,3115.5,0.002]
[1767898653114,0.001,3116.0,3115.5,0.002]
[1767898654200,4.0503393,3116.9,3115.5,0.002]
[1767898654201,0.91043983,3116.7,3115.6,0.98357773]
[1767898654722,0.91043983,3116.5,3115.6,3.86919727]
[1767898655597,0.91043983,3116.4,3115.6,7.07877483]
[1767898656909,0.91043983,3116.4,3115.6,4.19315529]
[1767898657121,0.91043983,3116.4,3115.6,7.07877483]
[1767898657321,0.91043983,3116.4,3115.7,0.70807748]
[1767898658125,0.91043983,3117.2,3116.4,0.98357773]
[1767898658309,3.20883111,3117.4,3116.4,0.98357773]
[1767898658310,0.91143983,3117.4,3116.9,2.88561954]
[1767898658618,0.91143983,3117.4,3116.7,2.88561954]
[1767898658820,0.91143983,3117.4,3116.7,3.35673927]
[1767898658998,0.001,3117.4,3116.7,4.340317]
[1767898659199,0.91043983,3117.3,3116.7,0.47111973]
[1767898659406,0.91043983,3117.3,3116.3,4.71119727]
[1767898659588,0.91043983,3117.3,3116.4,0.98357773]
[1767898659989,4.1184261,3117.3,3116.4,0.98357773]
[1767898660190,0.91143983,3117.4,3116.6,0.98357773]
[1767898660390,4.11925007,3117.4,3116.6,0.98357773]
[1767898660591,4.11925007,3117.4,3116.6,1.69138053]
[1767898661005,0.91143983,3117.4,3116.6,1.69138053]
[1767898661925,0.91143983,3117.4,3116.7,3.20852183]
[1767898662135,0.91143983,3117.4,3116.7,4.19209956]
[1767898662805,0.001,3117.4,3116.8,0.98357773]
[1767898663138,0.001,3117.4,3116.9,0.41920996]
[1767898664715,0.001,3117.4,3116.8,0.98357773]
[1767898665111,0.001,3117.4,3116.6,1.69138053]
[1767898665310,0.001,3117.4,3116.7,0.98357773]
[1767898666106,0.001,3117.1,3116.7,0.98357773]
[1767898666306,0.91043983,3117.5,3116.7,0.98357773]
[1767898666516,0.91043983,3117.5,3116.8,0.48999711]
[1767898667399,4.11814151,3117.5,3116.8,0.48999711]
[1767898669125,0.91043983,3117.5,3116.8,0.48999711]
[1767898670098,0.91043983,3117.5,3116.8,1.47357484]
[1767898671323,0.91808329,3117.7,3116.9,0.94681118]
[1767898671540,0.91808329,3117.7,3117.0,0.46452002]
[1767898673742,0.91808329,3117.7,3117.0,4.61950573]
[1767898673952,4.04916579,3118.1,3117.1,0.94681118]
[1767898673953,3.20723738,3118.0,3117.1,0.94681118]
[1767898674106,4.12532067,3118.0,3117.1,0.94681118]
[1767898674401,7.33255805,3118.0,3117.1,0.94681118]
[1767898674605,7.33255805,3118.0,3117.2,1.40876175]
[1767898674805,0.91808329,3117.9,3117.2,0.94681118]
[1767898675934,0.91808329,3117.7,3117.0,0.46452002]
[1767898676138,0.91808329,3117.7,3116.9,1.84972814]
[1767898676439,0.91808329,3117.7,3117.0,0.94681118]
[1767898676633,6.41477964,3117.8,3117.0,0.94681118]
[1767898676940,3.20738982,3117.8,3117.0,0.94681118]
[1767898679248,3.20738982,3117.8,3117.3,0.94881118]
[1767898679469,0.001,3117.6,3117.3,0.94881118]
[1767898680384,0.001,3117.6,3117.4,0.94681118]
[1767898691073,3.20700874,3118.2,3117.5,0.96866071]
[1767898692446,3.20700874,3118.2,3117.7,0.002]
[1767898692638,3.20700874,3118.2,3117.7,0.9539009]
[1767898695043,0.001,3118.4,3117.7,0.9539009]
[1767898695250,3.20781129,3118.4,3117.7,0.9539009]
[1767898695447,3.20781129,3118.4,3117.8,0.9519009]
[1767898695878,0.001,3118.4,3117.8,0.9519009]
[1767898696473,3.20779183,3118.4,3117.8,0.9519009]
[1767898697059,0.001,3118.4,3117.8,0.9519009]
[1767898702888,0.001,3118.4,3117.9,0.9519009]
[1767898703176,0.001,3118.4,3118.0,0.9519009]
[1767898703576,0.001,3118.4,3117.8,0.9519009]
[1767898706594,0.001,3118.1,3117.8,0.9519009]
[1767898712404,0.001,3118.1,3117.9,0.94064612]
[1767898713602,0.001,3118.1,3117.7,0.002]
[1767898713778,0.001,3118.1,3117.7,1.35389181]
[1767898716701,0.001,3118.1,3117.7,4.56138183]
[1767898716879,0.001,3118.1,3117.8,0.94064612]
[1767898717478,0.94329531,3118.4,3117.8,3.20732853]